Cogmind - Beta 14 *** ADVENTURER MODE // 2024.10.18 @ 22:13:00 Player: TupperwareContainer Result: Destroyed by D-53 Grenadier with Mini Grenade Launcher Performance ------------- Evolutions (0) 0 Regions Visited (2) 400 Robots Destroyed (18) 90 Value Destroyed (347) 347 Prototype IDs (0) 0 Alien Tech Used (0) 0 Bonus (0) 0 TOTAL SCORE: 837 Bonus ------- None Cogmind --------- Core Integrity 0/250 Matter 6/300 Energy 100/100 System Corruption 0% Temperature Cool (0) Movement Core (350) Ox6 Location -10/Mines Parts ------- > --- POWER (1) -------- (None) > --- PROPULSION (2) --- (None) > --- UTILITY (2) ------ Large Storage Unit > --- WEAPON (2) ------- Mini Grenade Launcher > --- INVENTORY (15) --- Improved Ion Engine Improved Ion Engine Large Storage Unit Sensor Array Sensor Array Signal Interpreter Improved Terrain Scanner Terrain Scan Processor Terrain Scan Processor Targeting Computer EM Pulse Gun Mini Grenade Launcher Mini Grenade Launcher Mini Grenade Launcher Plasma Flamer Peak State ------------ > --- POWER ------------ Improved Ion Engine > --- PROPULSION ------- Aluminum Leg Aluminum Leg > --- UTILITY ---------- Large Storage Unit > --- WEAPON ----------- Mini Grenade Launcher Plasma Flamer > --- INVENTORY -------- Improved Ion Engine Improved Ion Engine Large Storage Unit Sensor Array Sensor Array Signal Interpreter Improved Terrain Scanner Terrain Scan Processor Terrain Scan Processor Targeting Computer EM Pulse Gun EM Pulse Gun Mini Grenade Launcher Mini Grenade Launcher Mini Grenade Launcher [Rating: 14] Favorites ----------- Power Improved Ion Engine Engine Improved Ion Engine Propulsion Aluminum Leg Leg Aluminum Leg Utility Large Storage Unit Device Improved Terrain Scanner Storage Large Storage Unit Weapon EM Pulse Gun Energy Gun EM Pulse Gun Launcher Mini Grenade Launcher Special Weapon Plasma Flamer Build | -11 -10 -10 ------- Run | Yrd Mat Min Slots Evolved . | . . . Power . | . . . Propulsion . | . . . Utility . | . . . Weapon . | . . . Parts Attached 16 | 7 4 5 Power 2 | 1 1 . Engine 2 | 1 1 . Core . | . . . Reactor . | . . . Propulsion 2 | 2 . . Treads . | . . . Leg 2 | 2 . . Wheel . | . . . Hover . | . . . Flight . | . . . Utility 3 | 2 1 . Device 1 | 1 . . Storage 2 | 1 1 . Processor . | . . . Hackware . | . . . Protection . | . . . Artifact . | . . . Weapon 9 | 2 2 5 Energy Gun 4 | 2 . 2 Energy Cannon . | . . . Ballistic Gun . | . . . Ballistic Cannon . | . . . Launcher 4 | . 2 2 Special Weapon 1 | . . 1 Impact Weapon . | . . . Slashing Weapon . | . . . Piercing Weapon . | . . . Special Melee Weapon . | . . . Unidentified Prototypes . | . . . Parts Lost 4 | . . 4 Power 1 | . . 1 Propulsion 2 | . . 2 Utility . | . . . Weapon 1 | . . 1 Highest Loss Streak 4 | . . 4 To Critical Strikes . | . . . Average Slot Usage (%) 86 | . 87 81 Engine 13 | . 14 13 Leg 27 | . 28 25 Device 1 | . 2 . Storage 14 | . 14 14 Energy Gun 12 | . 14 6 Launcher 13 | . 13 14 Special Weapon 1 | . . 7 Peak Build Rating 14 | 9 11 14 Average Rating 10 | 5 9 11 On Entrance 6 | . 9 11 Naked Turns . | . . . Heaviest Build 32 | 13 31 32 Greatest Support 20 | 20 20 20 Greatest Overweight (x) 7 | . 1 7 Average Overweight (x) . | . . 1 Largest Inventory Capacity 15 | 8 15 15 Average Capacity 13 | 7 13 15 Most Carried 15 | 4 14 15 Average Carried 11 | 2 10 14 Final Capacity 15 | 8 15 15 Final Carried 15 | 3 14 15 Class Distribution -------------------- 100% | Mutant Dominant Class ---------------- Mutant | -10/Materials Mutant | -10/Mines Resources | -11 -10 -10 ----------- Run | Yrd Mat Min Matter Collected 326 | 270 54 2 Remotely . | . . . Salvage Created 422 | 83 166 173 Parts 27 | 5 17 5 Haulers Intercepted . | . . . Recyclers Shooed . | . . . Parts Field Recycled . | . . . Retrieved Matter . | . . . Parts Self-Destructed . | . . . Prevented . | . . . Kills | -11 -10 -10 ------- Run | Yrd Mat Min Combat Hostiles Destroyed 14 | . 8 6 AOE 14 | . 8 6 Classes Destroyed 7 | 2 3 2 Tunneler 2 | 1 . 1 Recycler 3 | 1 . 2 Watcher 2 | . 2 . Swarmer 5 | . 3 2 Grunt 5 | . 5 . Demolisher 1 | . . 1 Assembled 3 | . . 3 Best Kill Streak 6 | 2 3 6 Combat Bots Only 3 | . 3 3 Max Kills in Single Turn 3 | 1 2 3 Gunslinging . | . . . Exploded 2 | . 2 2 Melee . | . . . Uniques/NPCs Destroyed . | . . . Combat | -11 -10 -10 -------- Run | Yrd Mat Min Hostile Shots Fired 46 | . 20 26 Missed 10 | . 7 3 Damage Taken 645 | . 173 472 Core 257 | . 26 231 Absorbed by Shields . | . . . Ignored by Resistances 182 | . 53 129 Core Remaining (%) 100 | 100 . . Volleys Fired 21 | 3 9 9 Largest 2 | 1 2 2 Hottest 80 | 40 80 60 Shots Fired 37 | 3 18 16 Gun 9 | 3 6 . Cannon . | . . . Launcher 28 | . 12 16 Special . | . . . Kinetic . | . . . Thermal . | . . . Explosive 28 | . 12 16 Electromagnetic 9 | 3 6 . Robot Hit Streak 8 | 2 3 8 Robot Miss Streak 1 | 1 1 1 Penetration Max . | . . . Secondary Targets . | . . . Shots Hit Robots 19 | 2 7 10 Core Hits 38 | 2 15 21 Critical Kills . | . . . Critical Parts Destroyed . | . . . Critical Strikes 1 | . 1 . Corrupt 1 | . 1 . Melee Attacks . | . . . Impact . | . . . Slashing . | . . . Piercing . | . . . Sneak Attacks . | . . . Combat Hostiles . | . . . Follow-up Attacks . | . . . Damage Inflicted 1071 | 48 524 499 Guns 92 | 28 64 . Cannons . | . . . Explosions 979 | 20 460 499 Melee . | . . . Ramming . | . . . Kinetic . | . . . Thermal 20 | 20 . . Explosive 959 | . 460 499 Electromagnetic 92 | 28 64 . Impact . | . . . Slashing . | . . . Piercing . | . . . Highest Corruption . | . . . Average Corruption . | . . . Corruption Purged . | . . . Corruption Blocked . | . . . Overload Shots . | . . . Overflow Damage 9 | . . 9 Projectiles . | . . . Explosions 9 | . . 9 Melee . | . . . Knockbacks . | . . . Impact . | . . . Kinetic . | . . . Secondary . | . . . Self-Inflicted Damage 76 | . 76 . Shots 2 | . 2 . Rammed . | . . . Targets Rammed . | . . . Kicked . | . . . Crushed . | . . . Highest Temperature 36 | . 36 15 Average Temperature 8 | . 8 7 Received Heat Transfer 48 | . 48 . Siege Activations . | . . . Robots Corrupted . | . . . Combat Hostiles . | . . . Parts Fried 1 | . 1 . Impact Corruptions . | . . . Robots Melted . | . . . Combat Hostiles . | . . . Parts Melted . | . . . Heat Transferred 50 | 50 . . Parts Sabotaged . | . . . Parts Stolen . | . . . Parts Stripped . | . . . Power Chain Reactions 1 | 1 . . Alert | -11 -10 -10 ------- Run | Yrd Mat Min Peak Influence 178 | 10 178 158 Initial 30 | . 5 30 Average 56 | 8 45 96 Maximum Alert Level . | . . . Low Security (%) 100 | 100 100 100 Level 1 . | . . . Level 2 . | . . . Level 3 . | . . . Level 4 . | . . . Level 5 . | . . . High Security . | . . . Max Security . | . . . Squads Dispatched 3 | . 3 . Investigation 3 | . 3 . Extermination . | . . . Reinforcement . | . . . Assault . | . . . Garrison . | . . . Intercept . | . . . Searches Triggered . | . . . Construction Impeded . | . . . Haulers Reinforced . | . . . Active Scanning Responses . | . . . Cargo Convoy Interrupts . | . . . Stealth | -11 -10 -10 --------- Run | Yrd Mat Min Distress Signals . | . . . Communications Jammed . | . . . Distress Signals . | . . . Times Spotted 27 | . 9 18 Peak Tracking Total 20 | . 3 20 Tactical Retreats . | . . . Traps | -11 -10 -10 ------- Run | Yrd Mat Min Traps Triggered 2 | . 2 . Indirectly . | . . . Trap Hack Attempts . | . . . Triggered . | . . . Disarmed . | . . . Reprogrammed . | . . . Reused . | . . . Traps Extracted . | . . . Installed . | . . . Triggered . | . . . Machines | -11 -10 -10 ---------- Run | Yrd Mat Min Machines Disabled 1 | . 1 . Max in Single Turn 1 | . 1 . Machines Repaired . | . . . Machines Dismantled . | . . . Machines Sabotaged . | . . . Overloaded Fab Kills . | . . . Hacking | -11 -10 -10 --------- Run | Yrd Mat Min Machines Accessed 2 | . 2 . Terminals 1 | . 1 . Fabricators . | . . . Repair Stations . | . . . Recycling Units 1 | . 1 . Scanalyzers . | . . . Garrison Access . | . . . Total Hacks 4 | . 4 . Successful 4 | . 4 . Failed . | . . . Catastrophic . | . . . Database Lockouts . | . . . Manual . | . . . Terminals 1 | . 1 . Fabricators . | . . . Repair Stations . | . . . Recycling Units 3 | . 3 . Scanalyzers . | . . . Garrison Access . | . . . Terminal Hacks 1 | . 1 . Record 1 | . 1 . Fabricator Hacks . | . . . Repair Station Hacks . | . . . Recycling Unit Hacks 3 | . 3 . Process 1 | . 1 . Report Inventory 1 | . 1 . Retrieve Components 1 | . 1 . Scanalyzer . | . . . Garrison Access Hacks . | . . . Unauthorized Hacks . | . . . Terminals . | . . . Fabricators . | . . . Repair Stations . | . . . Recycling Units . | . . . Scanalyzers . | . . . Garrison Access . | . . . Data Cores Recovered . | . . . Used . | . . . Hacking Detections 1 | . 1 . Full Trace Events 1 | . 1 . Feedback Events . | . . . Feedback Blocked . | . . . Robot Schematics Acquired . | . . . Robots Built . | . . . Authchips . | . . . Time . | . . . Total Robot Build Rating . | . . . Part Schematics Acquired . | . . . Parts Built . | . . . Authchips . | . . . Time . | . . . Total Part Build Rating . | . . . Parts Repaired . | . . . Time . | . . . Parts Recycled . | . . . Recycled Matter . | . . . Retrieved Matter . | . . . Retrieved Components . | . . . Parts Scanalyzed . | . . . Part Schematics Acquired . | . . . Parts Damaged . | . . . Bothacking | -11 -10 -10 ------------ Run | Yrd Mat Min Used RIF Installer . | . . . Robots Hacked . | . . . Non-combat . | . . . Combat . | . . . Robot Hacks Applied . | . . . Relay Couplers Released . | . . . Fabnet Peak Effective % . | . . . Robots Rewired . | . . . Allies Hacked . | . . . Hacks Repelled . | . . . Allies | -11 -10 -10 -------- Run | Yrd Mat Min Total Allies . | . . . Largest Group . | . . . Highest-Rated Group . | . . . Highest-Rated Ally . | . . . Total Orders . | . . . Ally Attacks . | . . . Total Damage . | . . . Kills . | . . . Allies Corrupted . | . . . Allies Melted . | . . . Intel | -11 -10 -10 ------- Run | Yrd Mat Min Robot Analysis Total . | . . . Derelict Logs Recovered . | . . . Drone Launches . | . . . Drone Recoveries . | . . . Exploration | -11 -10 -10 ------------- Run | Yrd Mat Min Turns Passed 1469 | 87 1008 374 Spaces Moved 764 | 58 533 173 Core 10 | 8 . 2 Treads . | . . . Legs 754 | 50 533 171 Wheels . | . . . Hover . | . . . Flight . | . . . Fastest Speed 50 | 50 120 190 Average Speed 167 | 110 165 192 Slowest Speed 400 | 120 190 400 Overloaded Moves . | . . . Propulsion Burnouts . | . . . Robots Hopped . | . . . Cave-ins Triggered . | . . . Exploration Rate (%) 31 | 3 61 29 Regions Visited 2 Branch Regions 1 Pre-discovered Areas . | . . . Known Exits Taken . | . . . Unknown Exits Taken 2 | 1 1 . Scrap Searched . | . . . Spaces Dug . | . . . Terrain Destroyed 200 | 8 102 90 Melee . | . . . Projectile . | . . . AOE 200 | 8 102 90 Terrain Rammed . | . . . Walls Destroyed . | . . . Machines Disabled . | . . . Actions | -11 -10 -10 --------- Run | Yrd Mat Min Total 916 | 78 642 196 Wait 83 | 1 74 8 Move 762 | 57 532 173 Hop . | . . . Pick Up 27 | 10 16 1 Fast Attach . | . . . Attach 8 | 7 1 . Detach 1 | . 1 . Swap 8 | . 3 5 Drop 6 | . 6 . Fire 21 | 3 9 9 Melee . | . . . Ram . | . . . Kick . | . . . Crush . | . . . Escape Stasis . | . . . Rewire . | . . . Trap . | . . . Miscellaneous . | . . . Route ------- -11/Scrapyard -10/Materials (discovered 3 exits: [*Mat] / [*Min x2]) -10/Mines History --------- Turn | Location | Event 2 | -11/Scrapyard | Discovered new exit (range 16) 88 | -11/Scrapyard | Entered Materials 231 | -10/Materials | Discovered new exit (range 16) 312 | -10/Materials | Build established: Mutant 790 | -10/Materials | Discovered new exit (range 7) 957 | -10/Materials | Discovered new exit (range 5) 1096 | -10/Materials | Entered Mines 1167 | -10/Mines | A weapon hastily lodged in a ceiling crevice suddenly fell to the ground 1408 | -10/Mines | Assembled infested the area 1413 | -10/Mines | Assisted by a Guerilla fighting off Assembled 1459 | -10/Mines | Core integrity fell below 50% 1468 | -10/Mines | Core integrity fell below 20% 1470 | -10/Mines | Destroyed by D-53 Grenadier with Mini Grenade Launcher Last Messages --------------- as-11376 destroyed. R-06 Scavenger collects Corrupted Flexi-carbon Leg. R-06 Scavenger destroyed. Aluminum Leg destroyed. K-01 Serf destroyed. D-53 Grenadier destroyed. The unstable cave ceiling collapses. T-07 Excavator destroyed. The unstable cave ceiling collapses. Imp. Ion Engine destroyed. R-06 Scavenger destroyed. [Achievement: Remodeling] The unstable cave ceiling collapses. Laser Drill disabled. The unstable cave ceiling collapses. [Achievement: Oops] The unstable cave ceiling collapses. EM Pulse Gun destroyed. The unstable cave ceiling collapses. Map ----- +----------------------------------------------------+ | ?????????????????????????????????????????????????? | | ???????????????????#####?????????????????????????? | | ??????????????????## ##???????????####?????????? | | ?????????????????## ###????????## ###?###???? | | ?????????????????# ##???##### ## ##??? | | ????????????###### #??## #??? | | ????????????# #??# #??? | | ?????????#### ##### ##??# #???? | | ?????????# #???# # #??## ##???? | | ?????????# ## #???## ## #### ###????? | | ?????????# ## #????###### ### ##??????? | | ##??????## # ###???????##### ### ##?####???????? | | ??##### ##??????????# #?####?????????????? | | #?## #??????????# #??????????????????? | | #?# #?????###### #??????????????????? | | ### #### #?????# #??????????????????? | | ##??## ##?????# ######??????????????????? | | #### ##????####??????# #???????????????????????? | | ???# ##?????????####?# #???????????????????????? | | ?### #????????## ### ##??????????????????????? | | ## # #???????## #??????????????????????? | | # ##?????## ### #??????????????????????? | | # =######## # ###????????????????????? | | ?# # [ #????????????????????? | | ?# #####????????????????? | | ?# ########### @ ###??????????????? | | ?# ## ##????????# # "" ?????????? | | # ?#####?????????# " ????????????? | | ???????????###### "" ####????????????? | | ??????????## ##???????????????? | | ???????????# ##????????????????? | | # ???????????# # ##?????????????????? | | # ???????????###### #####??????????????????? | | ?????????????????? ??????????????????????? | | ?????????????????# # d #??????????????????????? | | ?????????????????# # #?????????????????????? | | ?????????????????# # ###?????????????????????? | | ?????????????????# = # ?????????????????????? | | ????????????????? [% #?????????????????????? | | ????????????????? #! #?????????????????????? | | ????????????????# ## #?????????????????????? | | ??????????????????? ##?????????????????????? | | ???????????????????? ???????????????????????? | | ???????????????????? ????????????????????????? | | ???????????????????? ????????????????????????? | | ???????????????????? ????????????????????????? | | ???????????????????? % ????????????????????????? | | ????????????????????## ????????????????????????? | | ??????????????????????% #????????????????????????? | | ?????????????????????? ?????????????????????????? | +----------------------------------------------------+ Best States ------------- Heat Dissipation 25 Energy Generation 12 Energy Capacity 265 Matter Stores 300 Matter Capacity 300 Sight Range 16 Terrain Scan Range 16 Terrain Scan Density 10 Resistance: KI 20 Resistance: TH 20 Resistance: EX 20 Resistance: EM 20 Resistance: I 20 Resistance: S 20 Resistance: P 20 Evasion (%) 55 Offensive Hacking 10 Item Schematics ----------------- None Robot Schematics ------------------ None Fabricated ------------ Nothing Alien Tech Used ----------------- None Achievements -------------- Hunted One Hack Too Far Oops Remodeling Challenges ------------ None Game ------ Seed ArchitectCommRouter Manual? 0 Play Time 00:21:41 Cumulative 7.9 hours Start 2024.10.18 @ 21:54:55 End 2024.10.18 @ 22:13:00 Sessions 1 Manual Loads 0 Difficulty Adventurer Special Mode None Game No. 18 Rogue 16 Adventurer 2 Explorer 0 Win Type - Total 0 Types 0/0/0/0/0/0/0/0/0 Lore% 3 Gallery% 12 Achievement% 2 Wizard Run 0 Options --------- Layout 1 ASCII 0 Keyboard 0 Movement Arrows Keybinds 0 Fullscreen 1 Font 24/Smallcaps Map View 50x35 Zoom Use 0% Tactical HUD 0 Map Filters NONE Filters NONE Steam 1 RUN: 5369d62a-34ae-42db-9b42-a36609223f33